fUST/lending_fUST_20260103
["ID","MTS","AMOUNT","RATE_DAILY","PERIOD"]
[400321221,1767370232102,-798.26,0.00011238,2]
[400321222,1767370232111,-578.0,0.00011238,2]
[400321223,1767370232124,-211.36585068,0.00011634,2]
[400321224,1767370232133,-1596.52,0.0001226,2]
[400321225,1767370232142,-1018.93912332,0.00012336,2]
[400321226,1767370232151,-300.0,0.00012432,2]
[400321227,1767370232161,-250.0,0.00012433,2]
[400321228,1767370232170,-250.0,0.00012433,2]
[400321229,1767370232179,-250.0,0.00012433,2]
[400321231,1767370232188,-250.0,0.00012433,2]
[400321233,1767370232197,-250.0,0.00012433,2]
[400321235,1767370232206,-250.0,0.00012433,2]
[400321237,1767370232215,-250.0,0.00012433,2]
[400321239,1767370232224,-250.0,0.00012433,2]
[400321241,1767370232233,-335.77230478,0.00012433,2]
[400321243,1767370232242,-1000.0,0.00012433,2]
[400321246,1767370232251,-960.14272122,0.00012433,2]
[400321249,1767370232262,-39.85727878,0.00012433,2]
[400321251,1767370232271,-217.26172251,0.00012433,2]
[400321305,1767370238658,-500.0,0.00012433,2]
[400321306,1767370238667,-500.0,0.00012433,2]
[400321307,1767370238676,-249.64894479,0.00012433,2]
[400321308,1767370238686,-500.0,0.00012433,2]
[400321310,1767370238695,-322.98895018,0.00012433,2]
[400321322,1767370240524,-177.01104982,0.00012433,2]
[400321323,1767370240534,-386.21772961,0.00012433,2]
[400321324,1767370240544,-43.14375361,0.00012433,2]
[400321610,1767371389773,2279.1,0.00012,10]
[400321638,1767371432238,-579.0,0.00011307,2]
[400321640,1767371432249,-366.46857982,0.00011307,2]
[400321643,1767371432343,-96.55339088,0.00011307,2]
[400321644,1767371432353,-207.13853366,0.00011311,2]
[400321645,1767371432364,-180.92629622,0.00012,2]
[400321662,1767371438485,-767.78,0.00011283,2]
[400321663,1767371438495,-319.07370378,0.00012,2]
[400321664,1767371438504,-500.0,0.00012177,2]
[400321666,1767371438514,-336.64222522,0.00012309,2]
[400322045,1767371446333,-487.61982066,0.00012309,2]
[400322058,1767371446450,-711.29795412,0.00012309,2]
[400322060,1767371446460,-300.0,0.00012327,2]
[400322062,1767371446471,-151.0,0.00012329,2]
[400322064,1767371446480,-151.0,0.00012329,2]
[400322066,1767371446490,-151.0,0.00012329,2]
[400322068,1767371446501,-3.01379768,0.00012329,2]
[400322070,1767371446513,-147.98620232,0.00012329,2]
[400322072,1767371446522,-151.0,0.00012329,2]
[400322074,1767371446532,-11.70709113,0.00012329,2]
[400322076,1767371446543,-139.29290887,0.00012329,2]
[400322078,1767371446552,-233.6958,0.00012329,2]
[400322080,1767371446562,-39.33642066,0.00012332,2]
[400323029,1767372028732,10000.0,0.00028767,120]
[400323035,1767372122860,8478.0,0.000136,60]
[400323070,1767372632390,-1855.81035215,0.00010958,2]
[400323072,1767372632400,-574.0,0.00010958,2]
[400323074,1767372632409,-626.47825637,0.00011069,2]
[400323078,1767372632443,-251.342,0.00011069,2]
[400323317,1767372638487,-122.17974363,0.00011069,2]
[400323319,1767372638498,-437.43807464,0.00011117,2]
[400323321,1767372638511,-301.03192536,0.00011117,2]
[400323323,1767372638521,-190.69369108,0.00011204,2]
[400323329,1767372638635,-12.30207191,0.00011204,2]
[400323330,1767372638645,-300.0,0.00011379,2]
[400323331,1767372638654,-274.48829243,0.0001138,2]
[400323332,1767372638664,-494.07892637,0.0001138,2]
[400323333,1767372638674,-878.36253577,0.0001138,2]
[400323334,1767372638684,-1255.16216396,0.0001138,2]
[400323335,1767372638698,-117.27929817,0.0001138,2]
[400323336,1767372638708,-1976.31570547,0.0001138,2]
[400323337,1767372638717,-1289.5889381,0.0001138,2]
[400323356,1767372640653,-1400.39632768,0.0001138,2]
[400323357,1767372640662,-3509.93669292,0.0001138,2]
[400323358,1767372640673,-195.0,0.00011978,2]
[400323359,1767372640683,-1200.0,0.00011978,2]
[400323360,1767372640692,-223.40602544,0.00011979,2]
[400323361,1767372640702,-402.1308458,0.00011979,2]
[400323362,1767372640711,-714.89928142,0.00011979,2]
[400323363,1767372640720,-1117.03012721,0.00011979,2]
[400323364,1767372640730,-1606.91485981,0.00011979,2]
[400323365,1767372640739,-815.15129864,0.00012128,2]
[400323366,1767372640749,-2737.645304,0.00012128,2]
[400323367,1767372640759,-2737.645304,0.00012128,2]
[400323368,1767372640769,-2737.645304,0.00012128,2]
[400323369,1767372640778,-2737.645304,0.00012128,2]
[400323370,1767372640787,-815.15129864,0.00012153,2]
[400323371,1767372640796,-500.0,0.00012177,2]
[400323372,1767372640806,-815.15129864,0.00012179,2]
[400323373,1767372640903,-815.15129864,0.00012204,2]
[400323374,1767372640914,-524.75426135,0.00012226,2]
[400323375,1767372640924,-500.0,0.00012226,2]
[400323376,1767372640934,-500.0,0.00012226,2]
[400323377,1767372640943,-500.0,0.00012226,2]
[400323378,1767372640952,-307.40928464,0.00012226,2]
[400323379,1767372640961,-500.0,0.00012226,2]
[400323380,1767372640971,-500.0,0.00012226,2]
[400323381,1767372640980,-41363.23633322,0.00012227,2]
[400323590,1767372646718,-9063.24479593,0.00012227,2]
[400323592,1767372646729,-647.36917147,0.00012227,2]
[400323855,1767373325407,200.65850529,0.00028767,120]
[400323892,1767373458678,1855.81035215,0.00012,10]
[400323950,1767373832493,-574.0,0.00010958,2]
[400323952,1767373832502,-205.56119042,0.00010958,2]
[400323954,1767373832512,-640.63880958,0.0001101,2]
[400323958,1767373832549,-1080.36649452,0.0001101,2]
[400323961,1767373832560,-662.01408104,0.0001101,2]
[400323963,1767373832572,-151.66937326,0.0001101,2]
[400323965,1767373832581,-730.98,0.00011136,2]
[400323967,1767373832591,-1412.86479604,0.00011853,2]
[400323969,1767373832600,-200.0,0.00011953,2]
[400323971,1767373832609,-200.0,0.00011953,2]
[400323972,1767373832618,-500.0,0.00011953,2]
[400323974,1767373832627,-198.0,0.00011953,2]
[400323976,1767373832637,-300.0,0.00012022,2]
[400323978,1767373832646,-300.0,0.00012023,2]
[400323980,1767373832655,-50000.0,0.00012023,2]
[400323982,1767373832665,-1200.0,0.00012025,2]
[400323984,1767373832674,-152.53658955,0.00012026,2]
[400323986,1767373832683,-2190.116243,0.00012027,2]
[400323988,1767373832692,-2190.116243,0.00012027,2]
[400323990,1767373832701,-2190.116243,0.00012027,2]
[400323992,1767373832710,-2190.116243,0.00012027,2]
[400323994,1767373832719,-1194.4154106,0.00012033,2]
[400323995,1767373832735,-250.0,0.0001209,2]
[400323996,1767373832755,-500.0,0.0001209,2]
[400323997,1767373832772,-195.39746407,0.00012127,2]
[400323998,1767373832790,-1461.95,0.00012148,2]
[400323999,1767373832810,-500.0,0.00012177,2]
[400324000,1767373832828,-586.78991533,0.000122,2]
[400324001,1767373832844,-2190.116243,0.000122,2]
[400324002,1767373832862,-2190.116243,0.000122,2]
[400324003,1767373832877,-2190.116243,0.000122,2]
[400324004,1767373832892,-2190.116243,0.000122,2]
[400324006,1767373832909,-500.0,0.00012226,2]
[400324009,1767373832928,-500.0,0.00012226,2]
[400324012,1767373832945,-238.64698059,0.00012226,2]
[400324014,1767373832957,-500.0,0.00012226,2]
[400324017,1767373832975,-500.0,0.00012226,2]
[400324019,1767373832992,-500.0,0.00012226,2]
[400324022,1767373833012,-500.0,0.00012226,2]
[400324024,1767373833026,-500.0,0.00012226,2]
[400324027,1767373833039,-500.0,0.00012226,2]
[400324029,1767373833054,-500.0,0.00012226,2]
[400324032,1767373833068,-500.0,0.00012226,2]
[400324034,1767373833081,-500.0,0.00012226,2]
[400324037,1767373833097,-500.0,0.00012226,2]
[400324039,1767373833111,-500.0,0.00012226,2]
[400324042,1767373833125,-500.0,0.00012226,2]
[400324044,1767373833139,-500.0,0.00012226,2]
[400324046,1767373833153,-609.33644118,0.00012226,2]
[400324049,1767373833167,-450.0,0.00012226,2]
[400324051,1767373833180,-2190.116243,0.00012226,2]
[400324053,1767373833194,-2190.116243,0.00012226,2]
[400324056,1767373833207,-2190.116243,0.00012226,2]
[400324058,1767373833221,-2190.116243,0.00012226,2]
[400324060,1767373833236,-200.0,0.00012227,2]
[400324063,1767373833250,-500.0,0.00012227,2]
[400324066,1767373833264,-200.55971566,0.00012227,2]
[400324068,1767373833277,-204.40776517,0.00012227,2]
[400324071,1767373833292,-201.35509354,0.00012227,2]
[400324073,1767373833307,-201.56480436,0.00012227,2]
[400324076,1767373833320,-10961.0619027,0.00012227,2]
[400324139,1767373838829,-1526.84513575,0.00011925,2]
[400324142,1767373838845,-596.42230822,0.00011925,2]
[400324144,1767373838856,-354.37501678,0.00011925,2]
[400324146,1767373838868,-906.77003365,0.00011925,2]
[400324266,1767373840842,-3300.0,0.00011925,2]
[400324873,1767374561647,6803.5,0.00028767,120]
[400324878,1767374772293,300.0,0.00028767,120]
[400324880,1767374787734,5000.0,0.00012,10]
[400324882,1767374830428,155.33651052,0.00023912,120]
[400324927,1767375031717,-568.0,0.00010551,2]
[400324930,1767375031732,-2041.5187249,0.00010551,2]
[400324932,1767375031747,-999.0,0.00010959,2]
[400324935,1767375031762,-201.44996661,0.00010979,2]
[400324937,1767375031776,-300.0,0.00010997,2]
[400324940,1767375031791,-4614.7264092,0.00010998,2]
[400324942,1767375031805,-239.73995171,0.00011035,2]
[400324945,1767375031820,-273.98851624,0.00011035,2]
[400324947,1767375031834,-428.10705663,0.00011035,2]
[400324950,1767375031848,-615.85768739,0.00011035,2]
[400324952,1767375031862,-730.56,0.000112,2]
[400324955,1767375031877,-3194.28854394,0.00011616,2]
[400324957,1767375031891,-5638.03002991,0.00011825,2]
[400324960,1767375031909,-1110.8674913,0.00012,2]
[400324962,1767375031923,-156.31797124,0.0001205,2]
[400324965,1767375031938,-420.0,0.00012085,2]
[400324968,1767375031953,-156.31797124,0.00012095,2]
[400324970,1767375031968,-156.31797124,0.0001214,2]
[400324972,1767375031982,-3371.7130403,0.0001215,2]
[400324975,1767375031996,-500.0,0.00012177,2]
[400324978,1767375032011,-156.31797124,0.00012184,2]
[400324980,1767375032026,-1461.12,0.00012218,2]
[400324983,1767375032040,-151.0,0.0001222,2]
[400324985,1767375032055,-219.83872792,0.00012226,2]
[400324987,1767375032069,-500.0,0.00012226,2]
[400324990,1767375032082,-500.0,0.00012226,2]
[400324992,1767375032097,-500.0,0.00012226,2]
[400324995,1767375032111,-320.22228488,0.00012226,2]
[400324997,1767375032125,-500.0,0.00012226,2]
[400324999,1767375032140,-263.63503008,0.00012226,2]
[400325001,1767375032155,-500.0,0.00012226,2]
[400325002,1767375032165,-500.0,0.00012226,2]
[400325003,1767375032174,-500.0,0.00012226,2]
[400325004,1767375032184,-500.0,0.00012226,2]
[400325005,1767375032194,-500.0,0.00012226,2]
[400325006,1767375032203,-500.0,0.00012226,2]
[400325007,1767375032385,-450.0,0.00012226,2]
[400325008,1767375032396,-876.046497,0.00012226,2]
[400325009,1767375032405,-876.046497,0.00012226,2]
[400325010,1767375032415,-876.046497,0.00012226,2]
[400325011,1767375032424,-876.046497,0.00012226,2]
[400325012,1767375032434,-38556.43943853,0.00012227,2]
[400325013,1767375032446,-434.039,0.00012227,2]
[400325014,1767375032894,5000.0,0.00012,10]
[400325040,1767375037859,-4385.20958974,0.00012227,2]
[400325048,1767375040025,-915.56306572,0.00012227,2]
[400325049,1767375040079,-300.0,0.00012227,2]
[400325050,1767375040452,200.0,0.00028767,120]
[400325077,1767375043932,-400.0,0.00011954,2]
[400325148,1767375044627,-100.0,0.00011954,2]
[400325150,1767375044637,-202.0,0.00012227,2]
[400325265,1767375045937,-1340.22142741,0.00012227,2]
[400325276,1767375458810,151.368659,0.00028767,120]
[400325279,1767375554097,5000.0,0.00012,10]
[400325317,1767376231870,-164.7616439,0.0001091,2]
[400325319,1767376231880,-197.42096728,0.0001091,2]
[400325320,1767376231890,-573.0,0.0001091,2]
[400325322,1767376231900,-702.66,0.00011084,2]
[400325324,1767376231909,-254.171,0.00011587,2]
[400325326,1767376231919,-156.31797124,0.00011723,2]
[400325328,1767376231929,-300.0,0.00011818,2]
[400325329,1767376231937,-3568.61134244,0.00011819,2]
[400325331,1767376231947,-500.0,0.00011819,2]
[400325333,1767376231956,-153.88710954,0.00011819,2]
[400325335,1767376231966,-500.0,0.00011819,2]
[400325337,1767376231975,-574.15559941,0.00011819,2]
[400325339,1767376231983,-500.0,0.00011819,2]
[400325341,1767376231997,-199.54452105,0.00011819,2]
[400325343,1767376232009,-500.0,0.00011819,2]
[400325345,1767376232018,-500.0,0.00011819,2]
[400325347,1767376232027,-500.0,0.00011819,2]
[400325349,1767376232037,-500.0,0.00011819,2]
[400325351,1767376232046,-500.0,0.00011819,2]
[400325353,1767376232056,-325780.62326362,0.0001182,2]
[400325355,1767376232065,-167.8677077,0.00011994,2]
[400325357,1767376232074,-375.6421816,0.00012,2]
[400325360,1767376232086,-1405.33,0.00012092,2]
[400325361,1767376232095,-376.5396692,0.000121,2]
[400325363,1767376232105,-376.5396692,0.000121,2]
[400325366,1767376232116,-376.5396692,0.000121,2]
[400325368,1767376232126,-376.5396692,0.000121,2]
[400325370,1767376232136,-151.0,0.000122,2]
[400325371,1767376232150,-376.5396692,0.000122,2]
[400325374,1767376232160,-250.0,0.00012212,2]
[400325376,1767376232169,-250.0,0.00012212,2]
[400325378,1767376232179,-250.0,0.00012212,2]
[400325380,1767376232188,-250.0,0.00012212,2]
[400325382,1767376232197,-250.0,0.00012212,2]
[400325383,1767376232206,-250.0,0.00012212,2]
[400325384,1767376232215,-250.0,0.00012212,2]
[400325385,1767376232225,-250.0,0.00012212,2]
[400325386,1767376232235,-250.0,0.00012212,2]
[400325387,1767376232244,-250.0,0.00012212,2]
[400325388,1767376232253,-250.0,0.00012212,2]
[400325389,1767376232263,-250.0,0.00012212,2]
[400325390,1767376232273,-2773.56790519,0.00012212,2]
[400325391,1767376232282,-250.0,0.00012212,2]
[400325392,1767376232291,-250.0,0.00012212,2]
[400325393,1767376232301,-250.0,0.00012212,2]
[400325394,1767376232311,-250.0,0.00012212,2]
[400325395,1767376232320,-250.0,0.00012212,2]
[400325396,1767376232329,-250.0,0.00012212,2]
[400325397,1767376232339,-250.0,0.00012212,2]
[400325398,1767376232349,-250.0,0.00012212,2]
[400325399,1767376232358,-250.0,0.00012212,2]
[400325400,1767376232367,-250.0,0.00012212,2]
[400325401,1767376232376,-1000.0,0.00012212,2]
[400325402,1767376232386,-1000.0,0.00012212,2]
[400325403,1767376232395,-1000.0,0.00012212,2]
[400325404,1767376232404,-1000.0,0.00012212,2]
[400325405,1767376232413,-1000.0,0.00012212,2]
[400325406,1767376232423,-1039.85727878,0.00012212,2]
[400325407,1767376232432,-151.0,0.00012212,2]
[400325408,1767376232442,-250.0,0.00012212,2]
[400325409,1767376232452,-151.0,0.00012212,2]
[400325410,1767376232462,-250.0,0.00012212,2]
[400325411,1767376232471,-151.0,0.00012212,2]
[400325412,1767376232481,-250.0,0.00012212,2]
[400325413,1767376232490,-151.0,0.00012212,2]
[400325414,1767376232500,-250.0,0.00012212,2]
[400325415,1767376232509,-151.0,0.00012212,2]
[400325416,1767376232620,-250.0,0.00012212,2]
[400325417,1767376232630,-151.0,0.00012212,2]
[400325418,1767376232639,-250.0,0.00012212,2]
[400325419,1767376232649,-151.0,0.00012212,2]
[400325420,1767376232659,-250.0,0.00012212,2]
[400325421,1767376232668,-151.0,0.00012212,2]
[400325422,1767376232678,-250.0,0.00012212,2]
[400325423,1767376232687,-151.0,0.00012212,2]
[400325424,1767376232696,-207.21979222,0.00012212,2]
[400325425,1767376232705,-151.0,0.00012212,2]
[400325426,1767376232715,-151.0,0.00012212,2]
[400325427,1767376232723,-574.12855637,0.00012212,2]
[400325428,1767376232735,-196.9088468,0.00012212,2]
[400325429,1767376232745,-209.40437684,0.00012212,2]
[400325430,1767376232754,-160.0,0.00012212,2]
[400325431,1767376232763,-160.0,0.00012212,2]
[400325432,1767376232773,-195.46768237,0.00012226,2]
[400325433,1767376232783,-351.84182827,0.00012226,2]
[400325434,1767376232792,-625.49658359,0.00012226,2]
[400325435,1767376232801,-977.33841186,0.00012226,2]
[400325436,1767376232810,-1407.36731307,0.00012226,2]
[400325437,1767376232820,-1913.66770395,0.00012226,2]
[400325438,1767376232829,-151.0,0.000123,2]
[400325439,1767376232839,-604.71,0.00012329,2]
[400325440,1767376232849,-538.42694778,0.00012329,2]
[400325441,1767376232859,-538.42694778,0.00012329,2]
[400325442,1767376232868,-538.42694778,0.00012329,2]
[400325443,1767376232877,-538.42694778,0.00012329,2]
[400325444,1767376232886,-538.42694778,0.00012329,2]
[400325445,1767376232895,-538.42694778,0.00012329,2]
[400325446,1767376232904,-538.42694778,0.00012329,2]
[400325447,1767376232914,-538.42694778,0.00012329,2]
[400325448,1767376232923,-538.42694778,0.00012329,2]
[400325449,1767376232932,-538.42694778,0.00012329,2]
[400325450,1767376232941,-538.42694778,0.00012329,2]
[400325451,1767376232951,-538.42694778,0.00012329,2]
[400325452,1767376232960,-538.42694778,0.00012329,2]
[400325453,1767376232969,-538.42694778,0.00012329,2]
[400325454,1767376232978,-538.42694778,0.00012329,2]
[400325455,1767376232987,-538.42694778,0.00012329,2]
[400325456,1767376233001,-538.42694778,0.00012329,2]
[400325457,1767376233019,-538.42694778,0.00012329,2]
[400325458,1767376233030,-538.42694778,0.00012329,2]
[400325459,1767376233041,-538.42694778,0.00012329,2]
[400325460,1767376233051,-538.42694778,0.00012329,2]
[400325461,1767376233066,-538.42694778,0.00012329,2]
[400325462,1767376233076,-538.42694778,0.00012329,2]
[400325463,1767376233085,-538.42694778,0.00012329,2]
[400325464,1767376233095,-538.42694778,0.00012329,2]
[400325465,1767376233104,-538.42694778,0.00012329,2]
[400325466,1767376233113,-538.42694778,0.00012329,2]
[400325467,1767376233122,-538.42694778,0.00012329,2]
[400325468,1767376233131,-538.42694778,0.00012329,2]
[400325469,1767376233141,-538.42694778,0.00012329,2]
[400325470,1767376233151,-538.42694778,0.00012329,2]
[400325471,1767376233161,-538.42694778,0.00012329,2]
[400325472,1767376233171,-538.42694778,0.00012329,2]
[400325473,1767376233180,-538.42694778,0.00012329,2]
[400325474,1767376233189,-538.42694778,0.00012329,2]
[400325475,1767376233198,-538.42694778,0.00012329,2]
[400325476,1767376233208,-538.42694778,0.00012329,2]
[400325477,1767376233216,-538.42694778,0.00012329,2]
[400325478,1767376233226,-538.42694778,0.00012329,2]
[400325479,1767376233235,-538.42694778,0.00012329,2]
[400325480,1767376233244,-538.42694778,0.00012329,2]
[400325481,1767376233254,-538.42694778,0.00012329,2]
[400325482,1767376233263,-538.42694778,0.00012329,2]
[400325483,1767376233273,-538.42694778,0.00012329,2]
[400325484,1767376233282,-538.42694778,0.00012329,2]
[400325485,1767376233291,-538.42694778,0.00012329,2]
[400325486,1767376233301,-538.42694778,0.00012329,2]
[400325487,1767376233311,-538.42694778,0.00012329,2]
[400325488,1767376233321,-538.42694778,0.00012329,2]
[400325489,1767376233330,-538.42694778,0.00012329,2]
[400325490,1767376233340,-538.42694778,0.00012329,2]
[400325491,1767376233350,-538.42694778,0.00012329,2]
[400325492,1767376233360,-538.42694778,0.00012329,2]
[400325493,1767376233370,-538.42694778,0.00012329,2]
[400325494,1767376233380,-538.42694778,0.00012329,2]
[400325495,1767376233390,-538.42694778,0.00012329,2]
[400325496,1767376233399,-538.42694778,0.00012329,2]
[400325497,1767376233409,-538.42694778,0.00012329,2]
[400325498,1767376233419,-538.42694778,0.00012329,2]
[400325499,1767376233428,-538.42694778,0.00012329,2]
[400325500,1767376233437,-538.42694778,0.00012329,2]
[400325501,1767376233447,-538.42694778,0.00012329,2]
[400325502,1767376233456,-538.42694778,0.00012329,2]
[400325503,1767376233467,-538.42694778,0.00012329,2]
[400325504,1767376233477,-538.42694778,0.00012329,2]
[400325505,1767376233487,-538.42694778,0.00012329,2]
[400325506,1767376233498,-538.42694778,0.00012329,2]
[400325507,1767376233508,-538.42694778,0.00012329,2]
[400325508,1767376233517,-538.42694778,0.00012329,2]
[400325509,1767376233527,-538.42694778,0.00012329,2]
[400325510,1767376233536,-538.42694778,0.00012329,2]
[400325511,1767376233545,-538.42694778,0.00012329,2]
[400325512,1767376233555,-3363.58481494,0.00012329,2]
[400325513,1767376233565,-3363.58481494,0.00012329,2]
[400325514,1767376233575,-3363.58481494,0.00012329,2]
[400325515,1767376233584,-3363.58481494,0.00012329,2]
[400325516,1767376233593,-3363.58481494,0.00012329,2]
[400325517,1767376233602,-3363.58481494,0.00012329,2]
[400325518,1767376233611,-3363.58481494,0.00012329,2]
[400325519,1767376233621,-3363.58481494,0.00012329,2]
[400325520,1767376233630,-3363.58481494,0.00012329,2]
[400325521,1767376233639,-3363.58481494,0.00012329,2]
[400325522,1767376233649,-3363.58481494,0.00012329,2]
[400325523,1767376233659,-3363.58481494,0.00012329,2]
[400325524,1767376233668,-3363.58481494,0.00012329,2]
[400325525,1767376233677,-3363.58481494,0.00012329,2]
[400325526,1767376233687,-3363.58481494,0.00012329,2]
[400325527,1767376233696,-3363.58481494,0.00012329,2]
[400325528,1767376233705,-3363.58481494,0.00012329,2]
[400325529,1767376233715,-700.837198,0.00012329,2]
[400325530,1767376233723,-700.837198,0.00012329,2]
[400325531,1767376233734,-700.837198,0.00012329,2]
[400325532,1767376233745,-112.44187877,0.00012329,2]
[400325533,1767376233778,-512.35140376,0.00012329,2]
[400325559,1767376237916,-160.0,0.00012212,2]
[400325561,1767376237926,-160.0,0.00012212,2]
[400325563,1767376237935,-160.0,0.00012212,2]
[400325565,1767376237944,-151.85926051,0.00012212,2]
[400325567,1767376237954,-76.04391547,0.00012329,2]
[400325569,1767376237963,-700.837198,0.00012329,2]
[400325571,1767376237972,-700.837198,0.00012329,2]
[400325573,1767376237981,-700.837198,0.00012329,2]
[400325575,1767376237990,-700.837198,0.00012329,2]
[400325577,1767376238003,-700.837198,0.00012329,2]
[400325579,1767376238012,-700.837198,0.00012329,2]
[400325581,1767376238021,-700.837198,0.00012329,2]
[400325583,1767376238031,-700.837198,0.00012329,2]
[400325584,1767376238041,-700.837198,0.00012329,2]
[400325587,1767376238051,-700.837198,0.00012329,2]
[400325590,1767376238061,-700.837198,0.00012329,2]
[400325592,1767376238072,-700.837198,0.00012329,2]
[400325596,1767376238082,-176.55114546,0.00012329,2]
[400325599,1767376238097,-524.28605254,0.00012329,2]
[400325601,1767376238107,-700.837198,0.00012329,2]
[400325603,1767376238116,-700.837198,0.00012329,2]
[400325605,1767376238125,-700.837193,0.00012329,2]
[400325607,1767376238135,-200.0,0.00012347,10]
[400325609,1767376238144,-159.47387289,0.00012458,2]
[400325611,1767376238154,-151.0,0.000126,2]
[400325612,1767376238164,-306.00142624,0.00012697,2]
[400325614,1767376238173,-151.0,0.000127,2]
[400325616,1767376238183,-595.37131296,0.0001276,2]
[400325618,1767376238192,-217.15233878,0.0001276,2]
[400325620,1767376238201,-168.0,0.00012761,2]
[400325622,1767376238210,-469.11,0.00012766,3]
[400325624,1767376238220,-255.00118853,0.0001277,2]
[400325626,1767376238229,-1365.0,0.00012773,2]
[400325628,1767376238238,-250.0,0.00012773,2]
[400325630,1767376238247,-28.09179031,0.00012773,2]
[400325634,1767376238282,-269.53320969,0.00012773,2]
[400325636,1767376238292,-58.02441343,0.00012773,2]
[400325675,1767376240117,-1041.66666667,0.00012406,2]
[400325676,1767376240127,-824.97558657,0.00012773,2]
[400325677,1767376240236,-239.942,0.00012773,2]
[400325678,1767376240252,-416.0,0.00012773,2]
[400325679,1767376240263,-168.0,0.00012785,2]
[400325680,1767376240272,-300.0,0.00012789,2]
[400325681,1767376240282,-300.0,0.00012789,2]
[400325682,1767376240292,-300.0,0.00012789,2]
[400325683,1767376240302,-300.0,0.00012789,2]
[400325684,1767376240311,-300.0,0.00012789,2]
[400325685,1767376240320,-300.0,0.00012789,2]
[400325686,1767376240330,-300.0,0.00012789,2]
[400325687,1767376240339,-300.0,0.00012789,2]
[400325688,1767376240348,-300.0,0.00012789,2]
[400325689,1767376240358,-300.0,0.00012789,2]
[400325690,1767376240368,-300.0,0.00012789,2]
[400325691,1767376240378,-300.0,0.00012789,2]
[400325692,1767376240387,-300.0,0.00012789,2]
[400325693,1767376240396,-300.0,0.00012789,2]
[400325694,1767376240406,-300.0,0.00012789,2]
[400325695,1767376240416,-600.0,0.00012789,2]
[400325696,1767376240426,-151.0,0.000128,2]
[400325697,1767376240436,-88.07194676,0.00012834,2]
[400325698,1767376240448,-1839.92805324,0.00012834,2]
[400325699,1767376240458,-366.83450977,0.00012843,2]
[400325700,1767376240468,-2000.0,0.00012866,3]
[400325701,1767376240478,-2000.0,0.00012866,3]
[400325702,1767376240487,-3472.73924989,0.0001287,2]
[400325783,1767376246182,-250.0,0.00012212,2]
[400325784,1767376246191,-2773.56790519,0.00012212,2]
[400325785,1767376246201,-250.0,0.00012212,2]
[400325786,1767376246210,-250.0,0.00012212,2]
[400325787,1767376246220,-45.04343725,0.00012212,2]
[400327273,1767377290025,2000.0,0.0002876,120]
[400327277,1767377324052,1530.0,0.0002876,120]
[400327304,1767377411932,988.0,0.00027868,120]
[400327412,1767377432678,-489.0,0.00010874,2]
[400327413,1767377432689,-437.8,0.00010874,2]
[400327414,1767377432717,-2704.21360694,0.00010874,2]
[400327569,1767377438274,-1806.14829726,0.00010874,2]
[400327571,1767377438284,-193.47254793,0.00010874,2]
[400327573,1767377438294,-573.0,0.00010874,2]
[400327576,1767377438303,-675.84,0.00011267,2]
[400327579,1767377438313,-203.337,0.00011486,2]
[400327582,1767377438322,-300.0,0.00011718,2]
[400327585,1767377438332,-718.05712337,0.00011719,2]
[400328000,1767377446378,-421.76370771,0.00011719,2]
[400328072,1767377711081,593.0,0.00027679,120]
[400328102,1767378012436,356.0,0.0002758,120]
[400328130,1767378310206,214.0,0.00027524,120]
[400328356,1767378602356,206.57119576,9.983e-05,2]
[400328360,1767378611237,160.0,0.00027492,120]
[400328398,1767378632410,-189.60309697,0.00010799,2]
[400328399,1767378632420,-435.75871896,0.00011186,2]
[400328400,1767378632678,-241.43128104,0.00011186,2]